[Event "Azerbaijan Men Championship 2024"]
[Site "Baku"]
[Date "2024.04.11"]
[Round "1.1"]
[White "Suleymanli, Aydin"]
[Black "Abdulov, Orkhan"]
[Result "1-0"]
[ECO "B81"]
[WhiteElo "2607"]
[BlackElo "2401"]
[Annotator "TA"]
[PlyCount "88"]
[EventDate "2024.04.11"]
[EventType "swiss"]
[EventCountry "AZE"]
[SourceTitle "playchess.com"]
[Source "ChessBase"]
[SourceQuality "1"]
[TimeControl "40/5400+30:1800+30"]

{[%evp 10,88,25,28,95,89,96,77,85,110,126,125,116,118,127,131,131,132,237,221,234,251,252,245,248,247,245,253,247,252,247,263,245,247,253,243,260,249,266,272,293,278,291,284,285,286,264,281,401,417,407,356,562,562,799,791,752,762,710,663,1376,1430,1817,1751,1842,1614,1700,1510,2126,2125,29974,29975,29971,29973,29975,29970,29982,29983,29981,29982,29973]} 1. e4 {[%emt 0:00:02]} c5 {[%emt 0:08:15]} 2. Nf3 {[%emt 0:00:05]} d6 {[%emt 0:00:45]} 3. d4 {[%emt 0:00:07]} cxd4 {[%emt 0:00:41]} 4. Nxd4 {[%emt 0:00:05]} Nf6 {[%emt 0:00:17]} 5. Nc3 {[%emt 0:00:07]} e6 {[%emt 0:01:19]} 6. g4 {[%emt 0:02:47]} d5 {[%emt 0:10:13]} (6... h6 $11 {remains equal.}) 7. exd5 $1 $16 {[%emt 0:03:38]} Nxd5 {[%emt 0:01:13]} 8. Bb5+ {[%emt 0:01:19]} Bd7 {[%emt 0:00:54] White is better.} 9. Nxd5 {[%emt 0:01:11][%cal Oe1g1]} exd5 {[%emt 0:00:04] [#]} 10. Qe2+ $1 {[%emt 0:00:34]} Qe7 {[%emt 0:05:03]} 11. Be3 {[%emt 0:03:23][%cal Bc1e3,Be3d4,Bd4b6][%mdl 32] White is more active.} a6 {[%emt 0:21:37]} 12. Bxd7+ {[%emt 0:00:53]} Nxd7 {[%emt 0:01:59]} 13. O-O-O {[%emt 0:06:47] aiming for Rhe1.} Ne5 {[%emt 0:09:19]} (13... O-O-O $16 14. Rhe1 Nc5) 14. Nf5 $18 {[%emt 0:15:17][%csl LRd5,LRe7]} Qe6 {[%emt 0:01:43]} 15. Rhe1 {[%emt 0:03:19]} O-O-O {[%emt 0:01:13][%cal Be8c8,Bc8d7,Bd7c6,Bc6b6][%mdl 32]} 16. Bd4 {[%emt 0:00:48]} Nc6 {[%emt 0:07:31]} 17. Bb6 {[%emt 0:00:18] Qf3 is the strong threat.} (17. Nxg7 $2 Qxe2 18. Rxe2 Nxd4 19. Rxd4 Bxg7 $19) ({But not} 17. Qxe6+ $6 fxe6 18. Rxe6 Nxd4 19. Nxd4 (19. Rxd4 g6 $16) 19... Bd6) 17... Re8 {[%emt 0:05:24] [#]} 18. Qd2 {[%emt 0:00:20][%csl LRd5,LRe6]} Qd7 {[%emt 0:04:02]} 19. Qxd5 {[%emt 0:03:24]} Qxd5 {[%emt 0:01:10]} 20. Rxe8+ {[%emt 0:00:05]} Kd7 {[%emt 0:00:04]} 21. Rd8+ {[%emt 0:03:10]} (21. Rxd5+ Kxe8 22. a4 f6) 21... Nxd8 {[%emt 0:00:10]} 22. Rxd5+ {[%emt 0:00:04]} Kc6 {[%emt 0:00:17]} 23. Rxd8 {[%emt 0:00:04]} Kxb6 {[%emt 0:00:04][%mdl 4096] Endgame. KRB-KRN} 24. Nd6 {[%emt 0:00:45]} g6 {[%emt 0:01:17]} 25. Nxf7 {[%emt 0:00:15]} Bh6+ {[%emt 0:00:52]} 26. Kd1 {[%emt 0:00:05]} (26. Nxh6 $2 {loses.} Rxd8 27. g5 Rd5 $19) 26... Rxd8+ {[%emt 0:00:20]} 27. Nxd8 {[%emt 0:00:02] Strongly threatening Ne6. KB-KN} Bf4 {[%emt 0:01:03]} 28. h3 {[%emt 0:00:15][%cal Bh2h3,Bh3g4][%mdl 32]} h5 {[%emt 0:04:20]} (28... Bg5 $142) 29. c3 {[%emt 0:02:32]} hxg4 {[%emt 0:01:55]} 30. hxg4 {[%emt 0:00:02]} a5 {[%emt 0:00:18]} (30... Bd6 $142 31. Ke2 Be7) 31. Kc2 {[%emt 0:00:50]} a4 {[%emt 0:00:20]} 32. Ne6 {[%emt 0:00:45]} Bd6 {[%emt 0:00:51]} 33. Kd3 {[%emt 0:00:09]} Kc6 {[%emt 0:00:18]} 34. Ke4 {[%emt 0:00:20]} b5 {[%emt 0:00:24]} 35. Nf4 {[%emt 0:01:10]} g5 {[%emt 0:00:38]} 36. Ne6 {[%emt 0:00:25]} Be7 {[%emt 0:00:21]} 37. Ke5 {[%emt 0:00:41]} Bd6+ {[%emt 0:06:22]} 38. Kf5 {[%emt 0:00:19]} Kd5 {[%emt 0:00:20]} 39. b3 {[%emt 0:00:06]} a3 {[%emt 0:01:10]} 40. Nxg5 {[%emt 0:00:00] White mates.} b4 {[%emt 0:00:00]} 41. Ne4 {[%emt 0:00:39]} Bf8 {[%emt 0:02:50]} 42. g5 {[%emt 0:00:05]} Bg7 {[%emt 0:00:52]} 43. cxb4 {[%emt 0:00:08]} Kd4 {[%emt 0:00:06]} 44. b5 {[%emt 0:00:09]} Kd5 {[%emt 0:34:36] Black got outplayed after the opening.   Weighted Error Value: White=0.00 (flawless) /Black=0.28 (precise) .  Mistake:       	---       	Black=3      Inaccurate:     	---       	Black=1      OK:         	White=20    	Black=9      Best:        	White=2     	Black=5      Strong:       	White=2     	---} 1-0

[Event "Azerbaijan Men Championship 2024"]
[Site "Baku"]
[Date "2024.04.11"]
[Round "1.2"]
[White "Ibrahimli, Murad"]
[Black "Muradli, Mahammad"]
[Result "0-1"]
[ECO "D23"]
[WhiteElo "2396"]
[BlackElo "2555"]
[Annotator "TA"]
[PlyCount "88"]
[EventDate "2024.04.11"]
[EventType "swiss"]
[EventCountry "AZE"]
[SourceTitle "playchess.com"]
[Source "ChessBase"]
[SourceQuality "1"]
[TimeControl "40/5400+30:1800+30"]

{[%evp 20,88,25,3,14,-16,0,-2,0,0,0,-11,0,0,0,0,4,-8,0,0,5,22,5,16,11,2,1,0,7,0,37,39,51,46,38,29,33,33,60,25,19,0,0,0,0,0,0,0,10,0,0,0,0,0,0,-103,-108,-116,-104,-209,-219,-220,-226,-120,-222,-556,-556,-551,-544,-530,-528]} 1. d4 {[%emt 0:00:47]} Nf6 {[%emt 0:08:00]} 2. c4 {[%emt 0:00:15]} e6 {[%emt 0:00:04]} 3. Nf3 {[%emt 0:03:11]} d5 {[%emt 0:00:06]} 4. Nc3 {[%emt 0:01:05]} dxc4 {[%emt 0:00:11]} 5. Qa4+ {[%emt 0:02:44]} Nc6 {[%emt 0:07:42]} 6. a3 {[%emt 0:00:24] D23: Queen's Gambit Accepted: 3 Nf3 Nf6 sidelines.} Bd6 {[%emt 0:03:43]} 7. e4 {[%emt 0:02:49]} Bd7 $146 {[%emt 0:00:37]} ({Predecessor:} 7... Be7 8. Bxc4 O-O 9. Be2 a6 10. O-O Rb8 11. Rd1 b5 12. Qc2 Bb7 13. Be3 Na5 {1-0 Mozharov,M (2558)-Sadhwani,R (2479) Titled Tuesday intern op 1st Oct blitz 2019 (10)}) 8. Qxc4 {[%emt 0:00:09]} e5 {[%emt 0:00:23]} 9. d5 {[%emt 0:00:24]} Ne7 {[%emt 0:00:25]} 10. Be2 {[%emt 0:06:32]} O-O {[%emt 0:01:53]} 11. O-O {[%emt 0:00:55]} h6 {[%emt 0:03:46]} 12. Qb3 {[%emt 0:04:57]} Qb8 {[%emt 0:08:20]} 13. h3 {[%emt 0:18:03]} a6 {[%emt 0:11:39]} 14. Be3 {[%emt 0:03:40]} b5 {[%emt 0:04:45]} 15. Qc2 {[%emt 0:09:25]} c6 {[%emt 0:05:17]} 16. dxc6 {[%emt 0:06:05]} Bxc6 {[%emt 0:00:12]} 17. Rfd1 {[%emt 0:00:23]} Rc8 {[%emt 0:02:47]} 18. Qb1 {[%emt 0:13:55]} Rd8 {[%emt 0:01:27]} 19. Nd2 {[%emt 0:14:22]} a5 {[%emt 0:06:18]} 20. a4 {[%emt 0:00:36]} bxa4 {[%emt 0:02:48]} 21. Nc4 {[%emt 0:06:01]} Bc7 {[%emt 0:02:45]} 22. Rxd8+ {[%emt 0:00:32]} (22. Nxa4 Bxe4 (22... Nxe4 23. Ncb6 $11) 23. Rxd8+ Qxd8 $17) 22... Qxd8 {[%emt 0:00:47]} 23. Qc2 {[%emt 0:02:21]} (23. Nxa4 Bxe4 (23... Nxe4 24. Qd3 $15) 24. Qd1 Qxd1+ 25. Bxd1 Ned5 $15) 23... Qb8 {[%emt 0:04:01]} 24. f3 {[%emt 0:02:13]} (24. Nxa4 Bxe4 (24... Nxe4 25. Nab6 $16) 25. Qd1 Nf5 $17) 24... Qb7 {[%emt 0:07:17]} 25. Nxa4 {[%emt 0:00:06]} Bxa4 {[%emt 0:00:08]} 26. Qxa4 {[%emt 0:00:21]} (26. Rxa4 Nc6 $11) 26... Nc6 {[%emt 0:00:05]} 27. Bf1 {[%emt 0:00:52]} Rd8 {[%emt 0:04:57]} 28. Kh2 {[%emt 0:00:30]} Nh5 {[%emt 0:01:16]} 29. Rd1 {[%emt 0:00:38]} Nd4 {[%emt 0:00:43]} 30. Rd2 {[%emt 0:00:05]} Qa6 {[%emt 0:04:48]} 31. Bf2 {[%emt 0:01:05]} Qf6 {[%emt 0:00:45]} 32. Qd1 {[%emt 0:00:30]} Qf4+ {[%emt 0:04:49]} 33. Kg1 {[%emt 0:00:08]} Rb8 {[%emt 0:02:10]} 34. Be3 {[%emt 0:00:52]} Qf6 {[%emt 0:00:12]} 35. Qe1 {[%emt 0:00:26]} Nf4 {[%emt 0:00:30]} 36. Kh2 {[%emt 0:00:27]} Rb3 {[%emt 0:01:23]} 37. Bxd4 {[%emt 0:00:32]} (37. Qg3 $11 {keeps the balance.}) 37... exd4 $17 {[%emt 0:00:22]} 38. e5 {[%emt 0:00:00]} Ng6 $1 {[%emt 0:01:27]} 39. Rxd4 {[%emt 0:00:09]} (39. Kg1 $17 {keeps fighting.} Nxe5 (39... Bxe5 40. Qe4 $17) 40. Nxe5 Bxe5 41. Re2) 39... Nxe5 $19 {[%emt 0:00:16]} (39... Bxe5+ 40. Nxe5 Nxe5 41. Rd5 $11) 40. Kh1 {[%emt 0:00:00] [#]} Nxf3 $1 {[%emt 0:00:00]} 41. Qe8+ {[%emt 0:09:18]} Kh7 {[%emt 0:00:56]} 42. Bd3+ $2 {[%emt 0:03:36] [#]} (42. gxf3 $2 Rxf3 (42... Qxd4 $2 43. Qxf7 a4 44. Be2 $19) 43. Qe2 Rf2 $19 (43... Rxf1+ $2 44. Kg2 $19)) (42. Qe4+ {was the crucial defense.} g6 43. Rd1 (43. gxf3 $2 Rxf3 44. Qe2 Rf2 $19)) 42... Rxd3 $1 $19 {[%emt 0:02:28]} ({Not} 42... g6 43. Rd7 Ng5 44. Nd2 Rxd3 (44... Rxb2 45. Nf3 $11) 45. Rxd3 $11) 43. Qe4+ {[%emt 0:00:18]} g6 {[%emt 0:00:09]} ({Don't go for} 43... Qg6 $2 44. Qxg6+ (44. Qxd3 $2 {perishes.} Nxd4 45. Qxd4 Qb1+ 46. Qg1 Qd3 $19) 44... Kxg6 45. Rxd3 $18) 44. Rxd3 {[%emt 0:00:04]} Ng5 {[%emt 0:00:27]} 0-1

[Event "Azerbaijan Men Championship 2024"]
[Site "Baku"]
[Date "2024.04.11"]
[Round "1.3"]
[White "Rasulov, Vugar"]
[Black "Talibov, Shiroghlan"]
[Result "1/2-1/2"]
[ECO "C01"]
[WhiteElo "2551"]
[BlackElo "2373"]
[Annotator "TA"]
[PlyCount "127"]
[EventDate "2024.04.11"]
[EventType "swiss"]
[EventCountry "AZE"]
[SourceTitle "playchess.com"]
[Source "ChessBase"]
[SourceQuality "1"]
[TimeControl "40/5400+30:1800+30"]

{[%evp 17,127,15,22,21,25,29,28,19,26,32,25,0,0,0,0,0,0,0,0,0,0,-8,-7,-10,3,6,14,18,8,18,18,7,6,10,9,18,5,15,18,9,24,10,14,0,15,14,15,34,15,10,42,47,36,36,34,33,35,33,33,33,33,8,8,8,8,8,8,14,12,7,7,0,0,0,0,0,0,0,0,0,0,-8,0,0,0,-19,-20,-16,-8,-10,0,0,0,0,0,0,0,0,0,0,0,0,0,-3,0,-26,0,-58,-41,-75,0,0]} 1. e4 {[%emt 0:00:07]} e5 {[%emt 0:00:13]} 2. Nf3 {[%emt 0:00:17]} Nf6 {[%emt 0:00:32]} 3. Nxe5 {[%emt 0:00:30]} d6 {[%emt 0:00:03]} 4. Nf3 {[%emt 0:00:17]} Nxe4 {[%emt 0:00:04]} 5. d3 {[%emt 0:01:14]} Nf6 {[%emt 0:00:06]} 6. d4 {[%emt 0:00:05]} d5 {[%emt 0:02:06]} 7. Bd3 {[%emt 0:00:19]} Bd6 {[%emt 0:00:48]} 8. Qe2+ {[%emt 0:00:15]} Qe7 {[%emt 0:01:43]} 9. Qxe7+ {[%emt 0:00:32]} Kxe7 {[%emt 0:00:22]} 10. O-O {[%emt 0:01:09]} Re8 {[%emt 0:00:27]} 11. Nc3 {[%emt 0:02:52]} c6 {[%emt 0:01:15]} 12. Bg5 {[%emt 0:04:53] White has an edge.} h6 {[%emt 0:13:14]} 13. Rae1+ {[%emt 0:00:26]} Be6 {[%emt 0:00:16]} 14. Bh4 {[%emt 0:00:14]} Nbd7 {[%emt 0:06:18][%cal Bb8d7,Bd7c5,Bc5d3][%mdl 32]} 15. Ne5 {[%emt 0:01:17]} g5 {[%emt 0:08:30]} 16. Bg3 {[%emt 0:01:09]} Bxe5 $1 {[%emt 0:00:05]} 17. dxe5 {[%emt 0:03:30]} Nh5 {[%emt 0:00:17]} 18. Ne2 {[%emt 0:02:49]} Nc5 {[%emt 0:06:41]} 19. Nd4 {[%emt 0:06:25]} Nxd3 {[%emt 0:17:40]} 20. cxd3 {[%emt 0:00:11]} Ng7 {[%emt 0:01:31]} 21. f4 {[%emt 0:01:56] [#] Hoping for f5.} Nf5 {[%emt 0:00:17]} 22. Nxf5+ {[%emt 0:07:48]} Bxf5 {[%emt 0:00:01]} 23. fxg5 {[%emt 0:06:19]} Bxd3 {[%emt 0:00:12]} 24. Rf6 {[%emt 0:02:32] Strongly threatening e6.} hxg5 {[%emt 0:01:23]} 25. Bf2 {[%emt 0:00:10]} d4 {[%emt 0:11:22]} 26. Bxd4 {[%emt 0:01:20]} Bc4 $1 {[%emt 0:00:07]} 27. a4 {[%emt 0:03:20][%cal Ba2a4,Ba4a5][%mdl 32]} Kd7 {[%emt 0:02:08]} 28. Rd6+ {[%emt 0:01:05]} Kc7 {[%emt 0:00:24]} 29. Rc1 {[%emt 0:00:22]} Be6 {[%emt 0:02:27]} 30. Be3 {[%emt 0:03:27]} g4 {[%emt 0:01:49]} 31. a5 {[%emt 0:06:35]} Rad8 {[%emt 0:06:26]} 32. a6 {[%emt 0:02:46]} (32. Bxa7 Rxd6 33. exd6+ Kxd6 $14) 32... Rxd6 {[%emt 0:05:00]} 33. exd6+ $14 {[%emt 0:00:18][%mdl 4096] Endgame. KRB-KRB} Kd7 {[%emt 0:01:26]} 34. axb7 {[%emt 0:00:06]} (34. Bxa7 bxa6 35. Bc5 Bb3 $11) 34... Rb8 {[%emt 0:00:03]} 35. b4 {[%emt 0:00:48]} Rxb7 {[%emt 0:01:51]} 36. Bc5 {[%emt 0:00:02]} a6 {[%emt 0:00:12]} 37. Ra1 {[%emt 0:00:21]} Bc4 $1 {[%emt 0:00:41]} 38. Kf2 {[%emt 0:00:07]} Rb8 {[%emt 0:00:13]} 39. Re1 {[%emt 0:00:35]} Be6 {[%emt 0:00:17]} 40. Kg3 {[%emt 0:00:00]} Rh8 {[%emt 0:00:00]} 41. Re3 {[%emt 0:08:06]} Rh5 {[%emt 0:03:12]} 42. Ra3 {[%emt 0:01:28]} Bc4 {[%emt 0:00:08]} 43. Ra1 {[%emt 0:00:41]} Rh8 {[%emt 0:02:00]} 44. b5 {[%emt 0:01:47]} cxb5 {[%emt 0:15:30]} 45. Rxa6 {[%emt 0:00:13] Ra7+ is the strong threat.} Rc8 {[%emt 0:00:33]} 46. Ra7+ {[%emt 0:01:07]} Kc6 {[%emt 0:01:13]} 47. Bb4 {[%emt 0:00:32]} Be6 {[%emt 0:00:11]} 48. Ra1 {[%emt 0:05:57]} Kb6 {[%emt 0:03:01]} 49. Ba5+ {[%emt 0:10:51]} Kc6 {[%emt 0:00:52]} 50. Rd1 {[%emt 0:00:55]} Kd7 {[%emt 0:00:41]} 51. Bb4 {[%emt 0:01:17]} Rc4 {[%emt 0:00:43]} 52. Rb1 {[%emt 0:00:09]} Kc6 {[%emt 0:01:10]} 53. Rb2 {[%emt 0:02:06]} Kd7 {[%emt 0:02:57]} 54. Kh4 {[%emt 0:04:39]} Re4 {[%emt 0:00:57]} 55. Kg5 {[%emt 0:02:50]} Rc4 {[%emt 0:01:06]} 56. Kh6 {[%emt 0:01:11]} Re4 {[%emt 0:01:07]} 57. g3 {[%emt 0:00:43]} Re3 {[%emt 0:01:04]} 58. Rc2 {[%emt 0:00:31]} Bc4 {[%emt 0:00:41]} 59. Kg5 {[%emt 0:00:19]} Re2 {[%emt 0:00:49]} 60. Rc1 {[%emt 0:04:51]} Rxh2 {[%emt 0:01:05]} 61. Rd1 {[%emt 0:00:50]} Re2 {[%emt 0:02:24]} 62. Kf4 {[%emt 0:01:32]} ({White should play} 62. Ra1 $11 Ra2 63. Rxa2 Bxa2 64. Kxg4) 62... Rf2+ {[%emt 0:01:35]} 63. Ke5 {[%emt 0:00:16] [#]} Rf1 {[%emt 0:00:33]} ({Better is} 63... f6+ $1 $17 64. Ke4 Rb2) 64. Rxf1 {[%emt 0:06:29] Weighted Error Value: White=0.07 (flawless) /Black=0.05 (flawless) .  Mistake:       	White=1     	Black=1      Inaccurate:     	White=2     	Black=2      OK:         	White=24    	Black=24     Best:        	White=2     	Black=5      Strong:       	---       	Black=3} 1/2-1/2

[Event "Azerbaijan Men Championship 2024"]
[Site "Baku"]
[Date "2024.04.11"]
[Round "1.4"]
[White "Hasanzade, Toghrul"]
[Black "Iskandarov, Misratdin"]
[Result "0-1"]
[ECO "B61"]
[WhiteElo "2350"]
[BlackElo "2538"]
[Annotator "TA"]
[PlyCount "90"]
[EventDate "2024.04.11"]
[EventType "swiss"]
[EventCountry "AZE"]
[SourceTitle "playchess.com"]
[Source "ChessBase"]
[SourceQuality "1"]
[TimeControl "40/5400+30:1800+30"]

{[%evp 22,90,63,65,48,0,0,0,0,0,0,0,8,0,7,0,0,0,0,0,0,-10,0,-23,-13,-29,-23,-49,-33,-64,-70,-73,-79,-124,-145,-159,-166,-398,-406,-469,-425,-477,-481,-555,-552,-737,-738,-750,-755,-788,-845,-955,-923,-2357,-2590,-2048,-2919,-5077,-936,-29982,-29983,-29986,-29987,-29988,-29989,-29989,-29990,-29990,-29991,-29992,-29985]} 1. e4 {[%emt 0:00:04]} c5 {[%emt 0:00:07]} 2. Nf3 {[%emt 0:00:25]} Nc6 {[%emt 0:00:36]} 3. d4 {[%emt 0:00:07]} cxd4 {[%emt 0:00:06]} 4. Nxd4 {[%emt 0:00:03]} Nf6 {[%emt 0:00:06]} 5. Nc3 {[%emt 0:00:10]} d6 {[%emt 0:00:30]} 6. Bg5 {[%emt 0:00:23]} Bd7 {[%emt 0:00:07]} 7. Qd2 {[%emt 0:07:19]} Rc8 {[%emt 0:00:06]} 8. f4 {[%emt 0:01:41]} Nxd4 {[%emt 0:05:58]} 9. Qxd4 {[%emt 0:00:26]} Qa5 {[%emt 0:00:09]} 10. O-O-O {[%emt 0:13:13]} h6 {[%emt 0:00:26]} 11. Bxf6 {[%emt 0:03:20]} gxf6 {[%emt 0:00:44]} 12. Kb1 {[%emt 0:01:31]} Qc5 {[%emt 0:00:06]} 13. f5 {[%emt 0:03:39]} (13. Qd3 $14) 13... Qxd4 $11 {[%emt 0:14:04]} 14. Rxd4 {[%emt 0:00:13]} h5 {[%emt 0:01:43] The position is equal.} 15. Bb5 {[%emt 0:06:21]} Bxb5 {[%emt 0:06:46]} 16. Nxb5 {[%emt 0:00:09]} a6 {[%emt 0:00:09]} 17. Nc3 {[%emt 0:00:16]} Rg8 {[%emt 0:01:08]} 18. g3 {[%emt 0:01:41]} e6 {[%emt 0:00:19]} 19. Rf1 {[%emt 0:02:24]} Be7 {[%emt 0:10:22][%cal Oh5h4]} 20. Rd3 {[%emt 0:04:54]} Kd7 {[%emt 0:08:11]} 21. b3 {[%emt 0:07:42]} Rc5 {[%emt 0:03:35]} 22. Nd1 {[%emt 0:10:30] [#]} h4 $1 {[%emt 0:10:07]} 23. Rf4 {[%emt 0:10:18]} (23. c4 hxg3) 23... hxg3 {[%emt 0:02:31]} 24. Rxg3 {[%emt 0:03:20]} Rh8 {[%emt 0:06:45]} 25. h4 {[%emt 0:05:56]} d5 {[%emt 0:00:24] ...Bd6 would now be deadly.} 26. fxe6+ {[%emt 0:10:10]} fxe6 {[%emt 0:00:07]} 27. Rd3 {[%emt 0:02:42]} Bd6 {[%emt 0:02:53]} 28. Rxf6 {[%emt 0:02:24]} dxe4 {[%emt 0:00:15]} (28... Rxh4 29. exd5 Rxd5 30. Rxd5 exd5 31. Rf1 $17) 29. Re3 {[%emt 0:02:20] [#]} (29. Rd2 {keeps fighting.}) 29... Rf5 $19 {[%emt 0:00:51]} ({Not} 29... Rxh4 30. Rf1 $17) 30. Rxf5 {[%emt 0:00:57]} exf5 {[%emt 0:00:06][%mdl 4096] Endgame. KRB-KRN} 31. Rh3 {[%emt 0:00:05]} Rh5 {[%emt 0:00:40]} 32. Ne3 {[%emt 0:00:30]} Ke6 {[%emt 0:00:06]} 33. Kc1 {[%emt 0:00:15]} f4 {[%emt 0:00:18]} 34. Nc4 {[%emt 0:00:09]} Be7 {[%emt 0:00:53]} 35. Kd2 {[%emt 0:00:20]} b5 {[%emt 0:00:17]} 36. Nb2 {[%emt 0:00:47]} Kf5 {[%emt 0:00:31]} 37. Nd1 {[%emt 0:00:10]} Rxh4 {[%emt 0:00:47]} 38. Rxh4 {[%emt 0:00:14]} Bxh4 {[%emt 0:00:03] KB-KN} 39. c4 {[%emt 0:00:22]} b4 {[%emt 0:00:35]} (39... bxc4 $142 40. bxc4 Be7) 40. Ke2 {[%emt 0:00:00]} Be7 {[%emt 0:00:00] Black mates.} 41. Kd2 {[%emt 0:00:50]} Bc5 {[%emt 0:00:47]} 42. Ke2 {[%emt 0:00:08]} f3+ {[%emt 0:00:05]} 43. Kd2 {[%emt 0:00:06]} Kf4 {[%emt 0:00:05]} 44. Nb2 {[%emt 0:00:32]} e3+ {[%emt 0:00:16]} 45. Ke1 {[%emt 0:00:06]} Ke5 {[%emt 0:58:20] White did not feel at home in the position after the opening.   Weighted Error Value: White=0.69/Black=0.20 (precise) .  Mistake:       	White=2     	---        Inaccurate:     	White=4     	---        OK:         	White=4     	Black=12     Best:        	White=1     	Black=2} 0-1

[Event "Azerbaijan Men Championship 2024"]
[Site "Baku"]
[Date "2024.04.11"]
[Round "1.5"]
[White "Guliyev, Namig"]
[Black "Ahmad, Khagan"]
[Result "1-0"]
[ECO "B92"]
[WhiteElo "2509"]
[BlackElo "2321"]
[Annotator "TA"]
[PlyCount "53"]
[EventDate "2024.04.11"]
[EventType "swiss"]
[EventCountry "AZE"]
[SourceTitle "playchess.com"]
[Source "ChessBase"]
[SourceQuality "1"]
[TimeControl "40/5400+30:1800+30"]

{[%evp 29,53,63,70,64,84,89,79,77,74,66,87,82,117,90,124,139,131,131,131,144,157,152,144,144,29994,29995]} 1. e4 {[%emt 0:00:07]} c5 {[%emt 0:00:06]} 2. Nf3 {[%emt 0:00:17]} d6 {[%emt 0:00:05]} 3. d4 {[%emt 0:02:15]} cxd4 {[%emt 0:00:10]} 4. Nxd4 {[%emt 0:00:08]} Nf6 {[%emt 0:00:06]} 5. Nc3 {[%emt 0:00:14]} a6 {[%emt 0:00:05]} 6. Be2 {[%emt 0:03:19]} e5 {[%emt 0:00:09]} 7. Nb3 {[%emt 0:00:12]} Be7 {[%emt 0:00:06]} 8. Bg5 {[%emt 0:03:12]} Nbd7 {[%emt 0:09:51]} 9. a4 {[%emt 0:00:55]} b6 {[%emt 0:00:17]} 10. Bc4 {[%emt 0:02:36]} Bb7 {[%emt 0:01:46]} 11. Qe2 {[%emt 0:01:41]} O-O {[%emt 0:00:38]} 12. O-O {[%emt 0:02:39]} Qc7 {[%emt 0:11:17]} 13. Rfd1 {[%emt 0:02:35]} Rfc8 {[%emt 0:00:24]} 14. Nd2 {[%emt 0:00:40]} h6 {[%emt 0:02:57]} 15. Bxf6 {[%emt 0:03:48]} Nxf6 {[%emt 0:00:07]} 16. Bb3 {[%emt 0:00:10]} Rd8 {[%emt 0:14:12]} 17. Nf1 {[%emt 0:04:09]} Rab8 {[%emt 0:35:37]} 18. Nd5 {[%emt 0:09:47] White is better.} Bxd5 19. Bxd5 {[%emt 0:00:08]} b5 {[%emt 0:00:21]} 20. Ne3 {[%emt 0:02:36]} Bf8 {[%emt 0:20:48]} 21. Bb3 {[%emt 0:03:08]} Qc6 {[%emt 0:01:09]} (21... Nxe4 $2 {perishes.} 22. Nd5 Qa7 23. Qxe4 $18) 22. Nd5 {[%emt 0:00:47]} Nxd5 {[%emt 0:00:38]} 23. Bxd5 {[%emt 0:02:32]} Qc7 {[%emt 0:00:36] Black is weak on the light squares} 24. axb5 {[%emt 0:01:54]} axb5 {[%emt 0:00:24]} 25. Ra3 {[%emt 0:02:02]} Rdc8 {[%emt 0:00:33]} 26. Qh5 {[%emt 0:01:12] White is much more active.} Qxc2 $2 {[%emt 0:00:33][%mdl 8192] [#]} (26... Kh8 $16 27. Rf3 (27. Bxf7 Qxc2 28. Be6 g6 $16) (27. Qxf7 Qxf7 28. Bxf7 Rxc2 $14) (27. Rc3 Qa7 $18) 27... Be7) 27. Qxf7+ {[%emt 0:00:19] Weighted Error Value: White=0.04 (flawless) /Black=0.66.  Loses game:     	---       	Black=1      Inaccurate:     	---       	Black=2      OK:         	White=4     	Black=3      Best:        	White=1     	---} ({Less strong is} 27. Bxf7+ Kh8 $16) 1-0